[Event "Live Chess"]
[Site "Chess.com"]
[Date "2024.06.02"]
[Round "-"]
[White "GEMdzq"]
[Black "FlyingChessKestrel13"]
[Result "1-0"]
[WhiteElo "2296"]
[BlackElo "2082"]
[TimeControl "300"]
[EndTime "6:02:19 PDT"]
[Termination "GEMdzq won by resignation"]

1. e4 {[%clk 0:04:57]} 1... c5 {[%clk 0:04:57.6]} 2. d4 {[%clk 0:04:55.9]} 2...
cxd4 {[%clk 0:04:56.1]} 3. c3 {[%clk 0:04:55.3]} 3... dxc3 {[%clk 0:04:54.4]} 4.
Nxc3 {[%clk 0:04:55.2]} 4... Nc6 {[%clk 0:04:53.5]} 5. Bc4 {[%clk 0:04:54.8]}
5... e6 {[%clk 0:04:52.2]} 6. Nf3 {[%clk 0:04:54.2]} 6... Be7 {[%clk 0:04:51.1]}
7. O-O {[%clk 0:04:53]} 7... d6 {[%clk 0:04:50.2]} 8. Qe2 {[%clk 0:04:51.5]}
8... a6 {[%clk 0:04:49.5]} 9. Rd1 {[%clk 0:04:50.8]} 9... Qc7 {[%clk 0:04:48.5]}
10. Bf4 {[%clk 0:04:48.5]} 10... Nf6 {[%clk 0:04:46]} 11. Rac1 {[%clk
0:04:47.7]} 11... O-O {[%clk 0:04:44.1]} 12. Bb3 {[%clk 0:04:46.2]} 12... e5
{[%clk 0:04:41.8]} 13. Bg5 {[%clk 0:04:43.3]} 13... Be6 {[%clk 0:04:40.9]} 14.
Nd5 {[%clk 0:04:38.4]} 14... Qd8 {[%clk 0:04:31.7]} 15. Bxf6 {[%clk 0:04:34.9]}
15... Bxf6 {[%clk 0:04:28.4]} 16. Nxf6+ {[%clk 0:04:32.4]} 16... Qxf6 {[%clk
0:04:27.4]} 17. Rxd6 {[%clk 0:04:31]} 17... Rfe8 {[%clk 0:04:26.4]} 18. h3
{[%clk 0:04:24.1]} 18... Qe7 {[%clk 0:04:24.4]} 19. Rcd1 {[%clk 0:04:02.6]}
19... Bxb3 {[%clk 0:04:21.9]} 20. Rd7 {[%clk 0:04:01]} 20... Nd4 {[%clk
0:04:14.4]} 21. Nxd4 {[%clk 0:03:53.1]} 21... Qxd7 {[%clk 0:04:12.7]} 22. Nxb3
{[%clk 0:03:51]} 22... Qe6 {[%clk 0:04:08.9]} 23. Nc5 {[%clk 0:03:49.2]} 23...
Qc6 {[%clk 0:04:07.3]} 24. b4 {[%clk 0:03:41.8]} 24... Rad8 {[%clk 0:04:04.3]}
25. Rc1 {[%clk 0:03:40.7]} 25... b6 {[%clk 0:03:56.9]} 26. Qxa6 {[%clk
0:03:33.6]} 26... Ra8 {[%clk 0:03:45]} 27. Qb7 {[%clk 0:03:16.9]} 27... Qxb7
{[%clk 0:03:38.9]} 28. Nxb7 {[%clk 0:03:16.8]} 28... Rxa2 {[%clk 0:03:36.1]} 29.
Rc6 {[%clk 0:03:13.2]} 29... b5 {[%clk 0:03:32.1]} 30. Rc5 {[%clk 0:03:02.4]}
30... Rb8 {[%clk 0:03:26.6]} 31. Nd6 {[%clk 0:02:59.5]} 31... Rb2 {[%clk
0:03:22.4]} 32. Nxb5 {[%clk 0:02:41.4]} 32... Rxb4 {[%clk 0:03:20.3]} 33. Nd6
{[%clk 0:02:40.4]} 33... Rd4 {[%clk 0:03:17.1]} 34. Rc6 {[%clk 0:02:27.9]} 34...
g6 {[%clk 0:03:11.2]} 35. f3 {[%clk 0:02:25.8]} 35... Rb1+ {[%clk 0:03:08.7]}
36. Kh2 {[%clk 0:02:23.6]} 36... Rb2 {[%clk 0:03:08.1]} 37. Rc8+ {[%clk
0:02:21.9]} 37... Kg7 {[%clk 0:03:06.4]} 38. Ne8+ {[%clk 0:02:20.8]} 38... Kh6
{[%clk 0:03:05.5]} 39. Nf6 {[%clk 0:02:17.6]} 39... Rdd2 {[%clk 0:03:03.9]} 40.
Ng4+ {[%clk 0:02:16.1]} 40... Kg5 {[%clk 0:03:01]} 41. Ne3 {[%clk 0:01:57.2]}
41... f5 {[%clk 0:02:54.2]} 42. exf5 {[%clk 0:01:55.1]} 42... gxf5 {[%clk
0:02:53.2]} 43. Rg8+ {[%clk 0:01:42.9]} 43... Kh6 {[%clk 0:02:49.3]} 44. Nxf5+
{[%clk 0:01:41.1]} 44... Kh5 {[%clk 0:02:47.8]} 45. h4 {[%clk 0:01:35.2]} 45...
h6 {[%clk 0:02:41.4]} 46. Kh3 {[%clk 0:01:31.2]} 46... Rxg2 {[%clk 0:02:27.3]}
47. Rxg2 {[%clk 0:01:31.1]} 47... Rxg2 {[%clk 0:02:26.2]} 48. Kxg2 {[%clk
0:01:29.7]} 48... e4 {[%clk 0:02:25.5]} 49. fxe4 {[%clk 0:01:26.8]} 49... Kg4
{[%clk 0:02:23.7]} 50. Nxh6+ {[%clk 0:01:21.2]} 50... Kf4 {[%clk 0:02:21.5]} 51.
Kh3 {[%clk 0:01:19]} 51... Kxe4 {[%clk 0:02:21.4]} 52. Kg4 {[%clk 0:01:18.3]}
52... Ke5 {[%clk 0:02:21.3]} 53. Kg5 {[%clk 0:01:17.6]} 53... Ke6 {[%clk
0:02:20.6]} 54. Kg6 {[%clk 0:01:16.8]} 54... Ke7 {[%clk 0:02:20.5]} 1-0

[Event "Live Chess"]
[Site "Chess.com"]
[Date "2024.06.02"]
[Round "-"]
[White "Ninifu"]
[Black "LL220284LL"]
[Result "0-1"]
[WhiteElo "2007"]
[BlackElo "2496"]
[TimeControl "300"]
[EndTime "6:02:20 PDT"]
[Termination "LL220284LL won on time"]

1. d4 {[%clk 0:04:56.6]} 1... c6 {[%clk 0:04:57.6]} 2. c4 {[%clk 0:04:53.9]}
2... g6 {[%clk 0:04:53.3]} 3. e4 {[%clk 0:04:52.4]} 3... Bg7 {[%clk 0:04:51.9]}
4. Nc3 {[%clk 0:04:51.6]} 4... Qa5 {[%clk 0:04:46.7]} 5. f4 {[%clk 0:04:47.3]}
5... d6 {[%clk 0:04:44.4]} 6. Nf3 {[%clk 0:04:45.1]} 6... Nd7 {[%clk 0:04:42.2]}
7. Bd2 {[%clk 0:04:29.5]} 7... Qc7 {[%clk 0:04:38.9]} 8. Bd3 {[%clk 0:04:26.8]}
8... e6 {[%clk 0:04:35.3]} 9. O-O {[%clk 0:04:23.7]} 9... Ne7 {[%clk 0:04:32.2]}
10. e5 {[%clk 0:04:08]} 10... dxe5 {[%clk 0:04:27.7]} 11. dxe5 {[%clk 0:04:06]}
11... b6 {[%clk 0:04:18.4]} 12. Ne4 {[%clk 0:04:04.6]} 12... O-O {[%clk
0:04:12.8]} 13. b4 {[%clk 0:03:54.5]} 13... a5 {[%clk 0:04:06.9]} 14. a3 {[%clk
0:03:45.9]} 14... Bb7 {[%clk 0:04:03.9]} 15. Nd6 {[%clk 0:03:43.4]} 15... Nc8
{[%clk 0:03:57.6]} 16. Nxb7 {[%clk 0:03:38.8]} 16... Qxb7 {[%clk 0:03:57.5]} 17.
Be4 {[%clk 0:03:34.5]} 17... axb4 {[%clk 0:03:54.4]} 18. axb4 {[%clk 0:03:30.8]}
18... Rxa1 {[%clk 0:03:50.6]} 19. Qxa1 {[%clk 0:03:29.9]} 19... Qc7 {[%clk
0:03:50]} 20. Nd4 {[%clk 0:03:15.6]} 20... Nxe5 {[%clk 0:03:38.7]} 21. fxe5
{[%clk 0:03:08.5]} 21... Qxe5 {[%clk 0:03:36.4]} 22. Bxc6 {[%clk 0:02:41.2]}
22... Qxd4+ {[%clk 0:03:34.4]} 23. Qxd4 {[%clk 0:02:40]} 23... Bxd4+ {[%clk
0:03:34.3]} 24. Kh1 {[%clk 0:02:39.4]} 24... Ne7 {[%clk 0:03:33.2]} 25. Bb5
{[%clk 0:01:55.9]} 25... f5 {[%clk 0:03:30.7]} 26. Bg5 {[%clk 0:01:44.5]} 26...
Kf7 {[%clk 0:03:27.3]} 27. Rd1 {[%clk 0:01:38.4]} 27... e5 {[%clk 0:03:11.4]}
28. Rd2 {[%clk 0:01:12.6]} 28... Rc8 {[%clk 0:03:08.1]} 29. Ra2 {[%clk
0:01:11.1]} 29... Rc7 {[%clk 0:03:03.9]} 30. Ra8 {[%clk 0:01:09.5]} 30... e4
{[%clk 0:02:55.5]} 31. c5 {[%clk 0:00:51.3]} 31... bxc5 {[%clk 0:02:45.6]} 32.
Bc4+ {[%clk 0:00:50.3]} 32... Kg7 {[%clk 0:02:44.7]} 33. Re8 {[%clk 0:00:03.4]}
33... Bf6 {[%clk 0:02:34.3]} 0-1

[Event "Live Chess"]
[Site "Chess.com"]
[Date "2024.06.02"]
[Round "-"]
[White "Grace6363"]
[Black "TheSmoulderingMaster"]
[Result "0-1"]
[WhiteElo "1132"]
[BlackElo "1764"]
[TimeControl "300"]
[EndTime "6:02:42 PDT"]
[Termination "TheSmoulderingMaster won by resignation"]

1. d4 {[%clk 0:04:58.6]} 1... Nf6 {[%clk 0:04:58.7]} 2. c4 {[%clk 0:04:57.4]}
2... d6 {[%clk 0:04:57.3]} 3. Nc3 {[%clk 0:04:55.1]} 3... g6 {[%clk 0:04:56.5]}
4. Nf3 {[%clk 0:04:51]} 4... Bg7 {[%clk 0:04:55.5]} 5. Bg5 {[%clk 0:04:50.4]}
5... O-O {[%clk 0:04:54.2]} 6. e4 {[%clk 0:04:49.7]} 6... c6 {[%clk 0:04:53.5]}
7. e5 {[%clk 0:04:48.9]} 7... dxe5 {[%clk 0:04:51.9]} 8. dxe5 {[%clk 0:04:47.9]}
8... Ng4 {[%clk 0:04:50.5]} 9. Qxd8 {[%clk 0:04:46.8]} 9... Rxd8 {[%clk
0:04:48.9]} 10. Bxe7 {[%clk 0:04:45.4]} 10... Re8 {[%clk 0:04:48.3]} 11. Bd6
{[%clk 0:04:41.4]} 11... Nxe5 {[%clk 0:04:45.3]} 12. Nxe5 {[%clk 0:04:40.4]}
12... Bxe5 {[%clk 0:04:44.1]} 13. Bxe5 {[%clk 0:04:39.2]} 13... Rxe5+ {[%clk
0:04:43.3]} 14. Be2 {[%clk 0:04:37.5]} 14... Na6 {[%clk 0:04:40.6]} 15. O-O
{[%clk 0:04:31.5]} 15... Bf5 {[%clk 0:04:38]} 16. Rad1 {[%clk 0:04:27.7]} 16...
Nb4 {[%clk 0:04:33.4]} 17. f4 {[%clk 0:04:26.3]} 17... Re3 {[%clk 0:04:28.5]}
18. a3 {[%clk 0:04:18.9]} 18... Nc2 {[%clk 0:04:19.9]} 19. Rf3 {[%clk
0:04:13.9]} 19... Rae8 {[%clk 0:04:12.6]} 20. Rxe3 {[%clk 0:04:02.7]} 20... Nxe3
{[%clk 0:04:09.9]} 21. Rd4 {[%clk 0:03:51.1]} 21... b5 {[%clk 0:03:54]} 22. cxb5
{[%clk 0:03:46.6]} 22... cxb5 {[%clk 0:03:53.1]} 23. Bxb5 {[%clk 0:03:39]} 23...
Nc2 {[%clk 0:03:52]} 24. Bxe8 {[%clk 0:03:36.6]} 24... Nxd4 {[%clk 0:03:48.3]}
25. Bb5 {[%clk 0:03:26.8]} 25... Kf8 {[%clk 0:03:37.6]} 26. Nd5 {[%clk
0:03:22.5]} 26... Nxb5 {[%clk 0:03:34.3]} 0-1

[Event "Live Chess"]
[Site "Chess.com"]
[Date "2024.06.02"]
[Round "-"]
[White "Mikhail_Golubev"]
[Black "TC2304"]
[Result "1-0"]
[WhiteElo "2489"]
[BlackElo "2333"]
[TimeControl "300"]
[EndTime "6:03:12 PDT"]
[Termination "Mikhail_Golubev won by checkmate"]

1. e4 {[%clk 0:04:57.4]} 1... c5 {[%clk 0:04:55.9]} 2. Nf3 {[%clk 0:04:52.6]}
2... d6 {[%clk 0:04:55.4]} 3. d4 {[%clk 0:04:51.4]} 3... cxd4 {[%clk 0:04:55.3]}
4. Nxd4 {[%clk 0:04:50.6]} 4... Nf6 {[%clk 0:04:55.2]} 5. Nc3 {[%clk 0:04:49.4]}
5... a6 {[%clk 0:04:55]} 6. Bc4 {[%clk 0:04:48]} 6... e6 {[%clk 0:04:54.2]} 7.
O-O {[%clk 0:04:45.8]} 7... b5 {[%clk 0:04:53.7]} 8. Bb3 {[%clk 0:04:44.2]} 8...
Be7 {[%clk 0:04:53.5]} 9. f4 {[%clk 0:04:36.8]} 9... Qc7 {[%clk 0:04:40.1]} 10.
f5 {[%clk 0:04:29.4]} 10... e5 {[%clk 0:04:36.2]} 11. Nf3 {[%clk 0:04:02.2]}
11... Nbd7 {[%clk 0:04:28.6]} 12. Nd5 {[%clk 0:02:27.5]} 12... Nxd5 {[%clk
0:04:10.8]} 13. Qxd5 {[%clk 0:02:25]} 13... Qa7+ {[%clk 0:04:10.4]} 14. Kh1
{[%clk 0:02:14.7]} 14... O-O {[%clk 0:04:10]} 15. Be3 {[%clk 0:01:39.6]} 15...
Nf6 {[%clk 0:04:01]} 16. Qxf7+ {[%clk 0:01:10.8]} 16... Rxf7 {[%clk 0:03:59]}
17. Bxa7 {[%clk 0:01:10.1]} 17... Rxa7 {[%clk 0:03:58.9]} 18. Ng5 {[%clk
0:01:08.6]} 18... Bf8 {[%clk 0:03:52.5]} 19. a4 {[%clk 0:01:01.4]} 19... b4
{[%clk 0:03:44.7]} 20. c3 {[%clk 0:01:00.5]} 20... bxc3 {[%clk 0:03:38.4]} 21.
Rac1 {[%clk 0:00:59.7]} 21... h6 {[%clk 0:03:35.1]} 22. Nxf7 {[%clk 0:00:57.8]}
22... Rxf7 {[%clk 0:03:31.7]} 23. Rxc3 {[%clk 0:00:55.9]} 23... Bd7 {[%clk
0:03:21]} 24. Bxf7+ {[%clk 0:00:50.5]} 24... Kxf7 {[%clk 0:03:19.7]} 25. Rc7
{[%clk 0:00:49.4]} 25... Ke8 {[%clk 0:03:15.4]} 26. b4 {[%clk 0:00:46]} 26...
Bxa4 {[%clk 0:03:09]} 27. Rfc1 {[%clk 0:00:39]} 27... Nxe4 {[%clk 0:02:37.8]}
28. Rc8+ {[%clk 0:00:35.9]} 28... Kf7 {[%clk 0:02:37.4]} 29. R1c7+ {[%clk
0:00:34.7]} 29... Be7 {[%clk 0:02:36.7]} 30. Ra8 {[%clk 0:00:29.4]} 30... Nf6
{[%clk 0:02:13.9]} 31. Rxa6 {[%clk 0:00:27]} 31... Be8 {[%clk 0:02:07]} 32. Raa7
{[%clk 0:00:25.8]} 32... Nd5 {[%clk 0:02:06.6]} 33. Rcb7 {[%clk 0:00:24.2]}
33... Bc6 {[%clk 0:02:01.4]} 34. Rb8 {[%clk 0:00:21.2]} 34... Ne3 {[%clk
0:02:00.3]} 35. b5 {[%clk 0:00:19.7]} 35... Bxg2+ {[%clk 0:01:59.1]} 36. Kg1
{[%clk 0:00:19.4]} 36... d5 {[%clk 0:01:59]} 37. b6 {[%clk 0:00:17.7]} 37... Kf6
{[%clk 0:01:56.5]} 38. Rxe7 {[%clk 0:00:15.7]} 38... Kxe7 {[%clk 0:01:56.4]} 39.
b7 {[%clk 0:00:15.1]} 39... d4 {[%clk 0:01:55.2]} 40. Re8+ {[%clk 0:00:14.5]}
40... Kxe8 {[%clk 0:01:54.4]} 41. b8=Q+ {[%clk 0:00:14.4]} 41... Ke7 {[%clk
0:01:53.5]} 42. Qxe5+ {[%clk 0:00:13.9]} 42... Kf8 {[%clk 0:01:51.2]} 43. Qxd4
{[%clk 0:00:13.4]} 43... Nxf5 {[%clk 0:01:49]} 44. Qd8+ {[%clk 0:00:11.4]} 44...
Kf7 {[%clk 0:01:46.9]} 45. Kxg2 {[%clk 0:00:11]} 45... Ne3+ {[%clk 0:01:43.1]}
46. Kf3 {[%clk 0:00:09.6]} 46... Nf5 {[%clk 0:01:43]} 47. h4 {[%clk 0:00:08.6]}
47... Ne7 {[%clk 0:01:42.4]} 48. h5 {[%clk 0:00:07.7]} 48... Ng8 {[%clk
0:01:40.8]} 49. Kf4 {[%clk 0:00:06.6]} 49... Nf6 {[%clk 0:01:40]} 50. Kf5 {[%clk
0:00:05.1]} 50... Nxh5 {[%clk 0:01:37.9]} 51. Qd7+ {[%clk 0:00:04.5]} 51... Kg8
{[%clk 0:01:36.6]} 52. Qe8+ {[%clk 0:00:02.8]} 52... Kh7 {[%clk 0:01:33.9]} 53.
Qxh5 {[%clk 0:00:02.7]} 53... g6+ {[%clk 0:01:33.4]} 54. Qxg6+ {[%clk
0:00:02.6]} 54... Kh8 {[%clk 0:01:33.3]} 55. Ke6 {[%clk 0:00:01.7]} 55... h5
{[%clk 0:01:32.3]} 56. Kf7 {[%clk 0:00:01.6]} 56... h4 {[%clk 0:01:31.9]} 57.
Qg8# {[%clk 0:00:01.5]} 1-0

[Event "Live Chess"]
[Site "Chess.com"]
[Date "2024.06.02"]
[Round "-"]
[White "Mary_cool"]
[Black "Colm_Buckley"]
[Result "1-0"]
[WhiteElo "1992"]
[BlackElo "1875"]
[TimeControl "300"]
[EndTime "6:03:29 PDT"]
[Termination "Mary_cool won on time"]

1. d4 {[%clk 0:04:58.7]} 1... e6 {[%clk 0:04:58.5]} 2. c4 {[%clk 0:04:49.5]}
2... d5 {[%clk 0:04:56]} 3. Nf3 {[%clk 0:04:48.6]} 3... c5 {[%clk 0:04:54.4]} 4.
cxd5 {[%clk 0:04:41.4]} 4... exd5 {[%clk 0:04:52.3]} 5. g3 {[%clk 0:04:40.5]}
5... Nc6 {[%clk 0:04:50.9]} 6. Bg2 {[%clk 0:04:38.2]} 6... Nf6 {[%clk
0:04:50.1]} 7. O-O {[%clk 0:04:37.2]} 7... Be7 {[%clk 0:04:45.8]} 8. b3 {[%clk
0:04:28.7]} 8... O-O {[%clk 0:04:40.8]} 9. dxc5 {[%clk 0:04:27.5]} 9... Bxc5
{[%clk 0:04:39.2]} 10. Bb2 {[%clk 0:04:26.7]} 10... d4 {[%clk 0:04:32.8]} 11.
Nbd2 {[%clk 0:04:11.7]} 11... d3 {[%clk 0:04:19.3]} 12. exd3 {[%clk 0:04:06.3]}
12... Qxd3 {[%clk 0:04:16.9]} 13. Bxf6 {[%clk 0:04:05.3]} 13... gxf6 {[%clk
0:04:15.1]} 14. Rc1 {[%clk 0:03:49.8]} 14... Ba3 {[%clk 0:04:05.2]} 15. Rc4
{[%clk 0:03:47.6]} 15... Ne5 {[%clk 0:03:50.8]} 16. Nxe5 {[%clk 0:03:39.8]}
16... fxe5 {[%clk 0:03:48.4]} 17. Be4 {[%clk 0:03:38.7]} 17... Qd6 {[%clk
0:03:39.6]} 18. Bxh7+ {[%clk 0:03:00.8]} 18... Kxh7 {[%clk 0:03:27.2]} 19. Rh4+
{[%clk 0:02:58.6]} 19... Kg7 {[%clk 0:03:18.5]} 20. Qh5 {[%clk 0:02:51.8]} 20...
Qg6 {[%clk 0:03:17.1]} 21. Qxe5+ {[%clk 0:02:47.6]} 21... f6 {[%clk 0:03:10.9]}
22. Qc7+ {[%clk 0:02:38.8]} 22... Rf7 {[%clk 0:03:07.5]} 23. Qd8 {[%clk
0:02:35]} 23... Rf8 {[%clk 0:02:56.7]} 24. Qc7+ {[%clk 0:02:16.8]} 24... Rf7
{[%clk 0:02:54.2]} 25. Qd8 {[%clk 0:02:14.9]} 25... Rf8 {[%clk 0:02:53]} 26. Qa5
{[%clk 0:02:02.9]} 26... Be7 {[%clk 0:02:26.6]} 27. Re1 {[%clk 0:02:01.1]} 27...
Rf7 {[%clk 0:02:18.9]} 28. Qc7 {[%clk 0:01:49.1]} 28... Bb4 {[%clk 0:02:05]} 29.
Qd8 {[%clk 0:01:42.7]} 29... Rf8 {[%clk 0:01:55.6]} 30. Qc7+ {[%clk 0:01:38.8]}
30... Rf7 {[%clk 0:01:54.7]} 31. Qd8 {[%clk 0:01:20.5]} 31... Rf8 {[%clk
0:01:52.5]} 32. Qd5 {[%clk 0:00:38]} 32... Rf7 {[%clk 0:01:28.1]} 33. Rxb4
{[%clk 0:00:35.6]} 33... Bf5 {[%clk 0:01:08.2]} 34. Rxb7 {[%clk 0:00:32.2]}
34... Rf8 {[%clk 0:01:00.4]} 35. Rxf7+ {[%clk 0:00:25.4]} 35... Rxf7 {[%clk
0:00:58.5]} 36. Nc4 {[%clk 0:00:24.7]} 36... Rd7 {[%clk 0:00:45.6]} 37. Qc6
{[%clk 0:00:17.8]} 37... Qf7 {[%clk 0:00:33.9]} 38. Nd6 {[%clk 0:00:16.5]} 38...
Qg6 {[%clk 0:00:19.6]} 39. Nxf5+ {[%clk 0:00:15.6]} 39... Qxf5 {[%clk
0:00:18.5]} 40. Qe6 {[%clk 0:00:14.9]} 40... Qxe6 {[%clk 0:00:17.2]} 41. Rxe6
{[%clk 0:00:13.8]} 41... Rd1+ {[%clk 0:00:16.6]} 42. Kg2 {[%clk 0:00:12.7]}
42... Rd7 {[%clk 0:00:14]} 43. h4 {[%clk 0:00:10.3]} 43... Kf7 {[%clk
0:00:12.6]} 44. Ra6 {[%clk 0:00:09.5]} 44... Kg6 {[%clk 0:00:11]} 45. g4 {[%clk
0:00:08.6]} 45... Rd4 {[%clk 0:00:06.2]} 46. Kg3 {[%clk 0:00:07.5]} 46... Rd3+
{[%clk 0:00:04.9]} 47. f3 {[%clk 0:00:07]} 47... Rd7 {[%clk 0:00:01.4]} 48. g5
{[%clk 0:00:06.1]} 1-0

[Event "Live Chess"]
[Site "Chess.com"]
[Date "2024.06.02"]
[Round "-"]
[White "Queensandpawns"]
[Black "ukraineZelensky"]
[Result "1-0"]
[WhiteElo "2285"]
[BlackElo "1341"]
[TimeControl "300"]
[EndTime "6:03:36 PDT"]
[Termination "Queensandpawns won by resignation"]

1. e4 {[%clk 0:04:59.4]} 1... e5 {[%clk 0:04:55.7]} 2. d4 {[%clk 0:04:58.7]}
2... exd4 {[%clk 0:04:53.8]} 3. c3 {[%clk 0:04:58.6]} 3... d6 {[%clk 0:04:50.2]}
4. Nf3 {[%clk 0:04:57.1]} 4... Nf6 {[%clk 0:04:43.4]} 5. Bc4 {[%clk 0:04:56.2]}
5... Be7 {[%clk 0:04:40]} 6. O-O {[%clk 0:04:55.4]} 6... O-O {[%clk 0:04:37.8]}
7. Re1 {[%clk 0:04:55]} 7... c6 {[%clk 0:04:30.7]} 8. cxd4 {[%clk 0:04:54.1]}
8... d5 {[%clk 0:04:27.9]} 9. exd5 {[%clk 0:04:52.1]} 9... cxd5 {[%clk
0:04:25.9]} 10. Bd3 {[%clk 0:04:52]} 10... Nc6 {[%clk 0:04:21.1]} 11. Nc3 {[%clk
0:04:50.6]} 11... h6 {[%clk 0:04:17.4]} 12. a3 {[%clk 0:04:48.3]} 12... Be6
{[%clk 0:04:14.8]} 13. Ne5 {[%clk 0:04:46.7]} 13... Kh8 {[%clk 0:04:04.3]} 14.
Bb1 {[%clk 0:04:42.7]} 14... Nxe5 {[%clk 0:03:36.5]} 15. dxe5 {[%clk 0:04:40.6]}
15... Ne4 {[%clk 0:03:33.1]} 16. Qd3 {[%clk 0:04:35.4]} 16... f5 {[%clk
0:03:18.4]} 17. exf6 {[%clk 0:04:29.5]} 17... Bxf6 {[%clk 0:03:09.9]} 18. Nxe4
{[%clk 0:04:26.5]} 18... dxe4 {[%clk 0:03:04.6]} 19. Qxe4 {[%clk 0:04:26.4]}
19... Bg8 {[%clk 0:02:35.3]} 20. Qg6 {[%clk 0:04:22.2]} 20... Qd4 {[%clk
0:02:22.7]} 21. Bxh6 {[%clk 0:04:17.9]} 21... Be5 {[%clk 0:02:01.3]} 22. Bxg7+
{[%clk 0:04:11.8]} 22... Bxg7 {[%clk 0:01:55]} 23. Qh5+ {[%clk 0:04:11.7]} 1-0

[Event "Live Chess"]
[Site "Chess.com"]
[Date "2024.06.02"]
[Round "-"]
[White "Isambard_Thomas"]
[Black "resipsa6"]
[Result "1-0"]
[WhiteElo "2199"]
[BlackElo "2010"]
[TimeControl "300"]
[EndTime "6:03:46 PDT"]
[Termination "Isambard_Thomas won by resignation"]

1. d4 {[%clk 0:04:59.4]} 1... c6 {[%clk 0:04:58.1]} 2. Nf3 {[%clk 0:04:57.4]}
2... d5 {[%clk 0:04:56.6]} 3. Bg5 {[%clk 0:04:56.6]} 3... Nf6 {[%clk 0:04:55.5]}
4. e3 {[%clk 0:04:55.8]} 4... e6 {[%clk 0:04:54.4]} 5. Bd3 {[%clk 0:04:52.9]}
5... Be7 {[%clk 0:04:53.9]} 6. Nbd2 {[%clk 0:04:51.9]} 6... Nbd7 {[%clk
0:04:53.1]} 7. Qe2 {[%clk 0:04:51]} 7... Nf8 {[%clk 0:04:52]} 8. O-O-O {[%clk
0:04:49.8]} 8... Ng6 {[%clk 0:04:51.3]} 9. Kb1 {[%clk 0:04:48.1]} 9... a5 {[%clk
0:04:47.7]} 10. c3 {[%clk 0:04:46.6]} 10... b5 {[%clk 0:04:46.7]} 11. e4 {[%clk
0:04:42.7]} 11... dxe4 {[%clk 0:04:44.2]} 12. Nxe4 {[%clk 0:04:38.1]} 12... Nxe4
{[%clk 0:04:40.6]} 13. Bxe4 {[%clk 0:04:37.4]} 13... Bb7 {[%clk 0:04:33.4]} 14.
h4 {[%clk 0:04:31.1]} 14... Bxg5 {[%clk 0:04:29]} 15. Nxg5 {[%clk 0:04:28.4]}
15... Qc7 {[%clk 0:04:19]} 16. g3 {[%clk 0:04:15.1]} 16... h6 {[%clk 0:04:17.3]}
17. Nxe6 {[%clk 0:04:03.7]} 1-0

[Event "Live Chess"]
[Site "Chess.com"]
[Date "2024.06.02"]
[Round "-"]
[White "Dashman93"]
[Black "r0ad_t0-gm"]
[Result "0-1"]
[WhiteElo "2123"]
[BlackElo "2292"]
[TimeControl "300"]
[EndTime "6:03:49 PDT"]
[Termination "r0ad_t0-gm won by resignation"]

1. e4 {[%clk 0:04:56.2]} 1... Nf6 {[%clk 0:04:59.9]} 2. e5 {[%clk 0:04:55]} 2...
Nd5 {[%clk 0:04:58.9]} 3. Nc3 {[%clk 0:04:54]} 3... e6 {[%clk 0:04:56.5]} 4. d4
{[%clk 0:04:52.7]} 4... d6 {[%clk 0:04:54.5]} 5. Nf3 {[%clk 0:04:51.6]} 5...
dxe5 {[%clk 0:04:48.7]} 6. dxe5 {[%clk 0:04:50.3]} 6... Nxc3 {[%clk 0:04:39.5]}
7. Qxd8+ {[%clk 0:04:47.7]} 7... Kxd8 {[%clk 0:04:39.4]} 8. bxc3 {[%clk
0:04:45.9]} 8... b6 {[%clk 0:04:35.7]} 9. Bg5+ {[%clk 0:04:44.8]} 9... Be7
{[%clk 0:04:34.6]} 10. O-O-O+ {[%clk 0:04:42.5]} 10... Ke8 {[%clk 0:04:34]} 11.
Bb5+ {[%clk 0:04:36.7]} 11... Bd7 {[%clk 0:04:33.4]} 12. Bd3 {[%clk 0:04:34]}
12... h6 {[%clk 0:04:28.8]} 13. Be3 {[%clk 0:04:26.5]} 13... c5 {[%clk
0:04:24.1]} 14. Nd2 {[%clk 0:04:12.4]} 14... Bc6 {[%clk 0:04:22.3]} 15. Be4
{[%clk 0:04:06]} 15... f5 {[%clk 0:04:18]} 16. Bf3 {[%clk 0:03:52.6]} 16... g5
{[%clk 0:04:09.2]} 17. Nc4 {[%clk 0:03:51.3]} 17... Bxf3 {[%clk 0:04:03.5]} 18.
gxf3 {[%clk 0:03:49.3]} 18... Nc6 {[%clk 0:03:54.3]} 19. Nd6+ {[%clk 0:03:43.8]}
19... Kf8 {[%clk 0:03:53]} 20. f4 {[%clk 0:03:38.1]} 20... Rd8 {[%clk
0:03:47.6]} 21. fxg5 {[%clk 0:03:33.3]} 21... hxg5 {[%clk 0:03:47.5]} 22. f4
{[%clk 0:03:31.6]} 22... Rh3 {[%clk 0:03:39.1]} 23. Rd3 {[%clk 0:03:27.5]} 23...
Bxd6 {[%clk 0:03:24.5]} 24. exd6 {[%clk 0:03:25.5]} 24... c4 {[%clk 0:03:23.8]}
0-1

[Event "Live Chess"]
[Site "Chess.com"]
[Date "2024.06.02"]
[Round "-"]
[White "juniortay"]
[Black "TJ-W"]
[Result "1-0"]
[WhiteElo "2352"]
[BlackElo "1575"]
[TimeControl "300"]
[EndTime "6:03:50 PDT"]
[Termination "juniortay won by resignation"]

1. e4 {[%clk 0:04:56.6]} 1... e5 {[%clk 0:04:58.3]} 2. Nf3 {[%clk 0:04:56.5]}
2... Nc6 {[%clk 0:04:57.3]} 3. d4 {[%clk 0:04:55.9]} 3... d6 {[%clk 0:04:48.9]}
4. Bb5 {[%clk 0:04:53.1]} 4... Bd7 {[%clk 0:04:41.4]} 5. d5 {[%clk 0:04:51.8]}
5... Nce7 {[%clk 0:04:24.1]} 6. Bd3 {[%clk 0:04:50.3]} 6... Nf6 {[%clk
0:04:20.6]} 7. c4 {[%clk 0:04:48.4]} 7... Ng6 {[%clk 0:04:14.6]} 8. Nc3 {[%clk
0:04:47.4]} 8... h6 {[%clk 0:04:11.1]} 9. O-O {[%clk 0:04:46.5]} 9... Be7 {[%clk
0:04:08.3]} 10. b4 {[%clk 0:04:45.7]} 10... c6 {[%clk 0:04:06]} 11. Be3 {[%clk
0:04:42.7]} 11... cxd5 {[%clk 0:04:02.3]} 12. cxd5 {[%clk 0:04:41.5]} 12... Nf4
{[%clk 0:03:55.5]} 13. Bxf4 {[%clk 0:04:39.6]} 13... exf4 {[%clk 0:03:55.4]} 14.
Rc1 {[%clk 0:04:38.6]} 14... g5 {[%clk 0:03:52]} 15. e5 {[%clk 0:04:37.5]} 15...
dxe5 {[%clk 0:03:50]} 16. Nxe5 {[%clk 0:04:36.7]} 16... O-O {[%clk 0:03:46.1]}
17. Re1 {[%clk 0:04:34.9]} 17... Bd6 {[%clk 0:03:44.6]} 18. a3 {[%clk
0:04:22.4]} 18... Re8 {[%clk 0:03:38.2]} 19. Nc4 {[%clk 0:04:20.7]} 19... Bc7
{[%clk 0:03:31.4]} 20. d6 {[%clk 0:04:15.2]} 20... Bb6 {[%clk 0:03:27]} 21.
Rxe8+ {[%clk 0:04:11.9]} 21... Qxe8 {[%clk 0:03:24.5]} 22. Qd2 {[%clk
0:04:05.8]} 22... Ng4 {[%clk 0:03:13.3]} 23. Nxb6 {[%clk 0:03:57.3]} 23... axb6
{[%clk 0:03:06.9]} 24. Re1 {[%clk 0:03:56.8]} 24... Qc8 {[%clk 0:03:00.3]} 25.
Nd5 {[%clk 0:03:55.4]} 25... Rxa3 {[%clk 0:02:52]} 26. Ne7+ {[%clk 0:03:52.7]}
1-0